[Event "Championnat du monde jeunes U10"]
[Date "2024.11.26"]
[White "Ramesan, Raunak Amit"]
[Black "Ten Dam, Bram"]
[WhiteElo "1802"]
[BlackElo "2012"]
[Round "11.25"]
[Result "1-0"]
[TimeControl "5400+30"]

1. e4 {[%clk 1:30:58]} 1... c5 {[%clk 1:30:43]} 2. Nf3 {[%clk 1:31:17]} 2... d6
{[%clk 1:31:09]} 3. d4 {[%clk 1:31:43]} 3... cxd4 {[%clk 1:31:36]} 4. Nxd4
{[%clk 1:32:08]} 4... Nf6 {[%clk 1:32:01]} 5. Nc3 {[%clk 1:32:34]} 5... g6
{[%clk 1:32:28]} 6. Be3 {[%clk 1:32:59]} 6... a6 {[%clk 1:32:20]} 7. f3 {[%clk
1:33:22]} 7... h5 {[%clk 1:32:44]} 8. Qd2 {[%clk 1:33:41]} 8... b5 {[%clk
1:33:01]} 9. a4 {[%clk 1:34:01]} 9... bxa4 {[%clk 1:28:52]} 10. Nxa4 {[%clk
1:33:12]} 10... Nbd7 {[%clk 1:25:48]} 11. Be2 {[%clk 1:31:33]} 11... Bg7 {[%clk
1:24:48]} 12. O-O {[%clk 1:31:33]} 12... Bb7 {[%clk 1:24:23]} 13. c4 {[%clk
1:31:00]} 13... O-O {[%clk 1:24:02]} 14. Rac1 {[%clk 1:28:49]} 14... Rc8 {[%clk
1:18:14]} 15. Rfd1 {[%clk 1:25:09]} 15... Qc7 {[%clk 1:10:04]} 16. b4 {[%clk
1:22:20]} 16... Rfd8 {[%clk 1:05:01]} 17. Qa2 {[%clk 1:21:08]} 17... Ba8 {[%clk
0:54:57]} 18. Qa3 {[%clk 1:16:40]} 18... Rb8 {[%clk 0:51:05]} 19. b5 {[%clk
1:13:14]} 19... Nc5 {[%clk 0:30:02]} 20. Nb3 {[%clk 1:06:28]} 20... Nxb3 {[%clk
0:26:31]} 21. Qxb3 {[%clk 1:06:43]} 21... h4 {[%clk 0:23:09]} 22. b6 {[%clk
1:02:45]} 22... Qc6 {[%clk 0:19:28]} 23. c5 {[%clk 1:00:40]} 23... d5 {[%clk
0:19:41]} 24. Bf4 {[%clk 0:54:22]} 24... Rbc8 {[%clk 0:15:37]} 25. Bxa6 {[%clk
0:53:51]} 25... h3 {[%clk 0:12:30]} 26. Qb5 Qe6 {[%clk 0:10:07]} 27. Bxc8 {[%clk
0:50:20]} 27... Rxc8 {[%clk 0:08:42]} 28. b7 {[%clk 0:48:57]} 28... Bxb7 {[%clk
0:07:15]} 29. Qxb7 {[%clk 0:48:43]} 29... dxe4 {[%clk 0:06:52]} 30. Nb6 {[%clk
0:46:14]} 30... Re8 {[%clk 0:05:10]} 31. Nd7 {[%clk 0:43:08]} 31... e3 {[%clk
0:02:12]} 32. Nxf6+ {[%clk 0:42:56]} 32... Bxf6 {[%clk 0:01:30]} 33. Qe4 {[%clk
0:41:31]} 33... Qa2 {[%clk 0:00:47]} 34. Rc2 {[%clk 0:39:47]} 34... e2 {[%clk
0:00:42]} 35. Qxe2 {[%clk 0:39:44]} 1-0

[Variant "Standard"]
[Site "Europe Echecs"]

[Event "Championnat du monde jeunes U10"]
[Date "2024.11.26"]
[White "Neuschild, Marius"]
[Black "Chen, Chicheng Leon"]
[WhiteElo "1786"]
[BlackElo "1987"]
[Round "11.26"]
[Result "1/2-1/2"]
[TimeControl "5400+30"]

1. e4 {[%clk 1:30:58]} 1... c5 {[%clk 1:30:53]} 2. Nf3 {[%clk 1:31:25]} 2... d6
{[%clk 1:31:16]} 3. d4 {[%clk 1:31:48]} 3... cxd4 {[%clk 1:31:40]} 4. Nxd4
{[%clk 1:32:14]} 4... Nf6 {[%clk 1:32:00]} 5. Nc3 {[%clk 1:32:41]} 5... a6
{[%clk 1:32:23]} 6. Be2 {[%clk 1:32:58]} 6... e6 {[%clk 1:32:30]} 7. Be3 {[%clk
1:31:45]} 7... Be7 {[%clk 1:32:37]} 8. O-O {[%clk 1:24:58]} 8... b5 {[%clk
1:32:38]} 9. a3 {[%clk 1:17:55]} 9... Bb7 {[%clk 1:32:57]} 10. Bf3 {[%clk
1:14:42]} 10... Qc7 {[%clk 1:28:57]} 11. Nde2 {[%clk 0:57:15]} 11... O-O {[%clk
1:27:37]} 12. Nf4 {[%clk 0:55:00]} 12... Nbd7 {[%clk 1:25:09]} 13. Nd3 {[%clk
0:50:04]} 13... Rac8 {[%clk 1:22:31]} 14. Qe2 {[%clk 0:47:52]} 14... Nb6 {[%clk
1:15:17]} 15. e5 {[%clk 0:30:17]} 15... Nfd5 {[%clk 1:10:05]} 16. Bxb6 {[%clk
0:26:38]} 16... Nxc3 {[%clk 1:08:04]} 17. Bxc7 {[%clk 0:25:53]} 17... Nxe2+
{[%clk 1:08:26]} 18. Bxe2 {[%clk 0:26:22]} 18... Rxc7 {[%clk 1:08:46]} 19. exd6
{[%clk 0:23:04]} 19... Bxd6 {[%clk 1:09:08]} 20. c3 {[%clk 0:23:06]} 20... Rd8
{[%clk 1:05:09]} 21. Rfd1 {[%clk 0:21:10]} 21... Rcd7 {[%clk 1:00:18]} 22. Nb4
{[%clk 0:20:11]} 22... a5 {[%clk 0:52:04]} 23. Nc2 {[%clk 0:17:16]} 23... Bc5
{[%clk 0:40:05]} 24. Rxd7 {[%clk 0:12:35]} 24... Rxd7 {[%clk 0:40:31]} 25. Rd1
{[%clk 0:12:09]} 25... Rxd1+ {[%clk 0:39:36]} 26. Bxd1 {[%clk 0:11:52]} 26... e5
{[%clk 0:31:21]} 27. Kf1 {[%clk 0:07:56]} 27... f5 {[%clk 0:29:29]} 28. f3
{[%clk 0:07:11]} 28... Kf7 {[%clk 0:28:56]} 29. Ke2 {[%clk 0:05:11]} 29... Bd5
{[%clk 0:27:36]} 30. Ne3 {[%clk 0:04:58]} 30... Be6 {[%clk 0:28:01]} 31. Bc2
{[%clk 0:04:22]} 31... g6 {[%clk 0:27:02]} 32. Bd3 {[%clk 0:04:22]} 32... Bd7
{[%clk 0:26:56]} 33. b4 {[%clk 0:03:22]} 33... axb4 {[%clk 0:20:16]} 34. axb4
{[%clk 0:03:51]} 34... Bd6 {[%clk 0:19:04]} 35. Nc2 {[%clk 0:03:18]} 35... e4
{[%clk 0:14:03]} 36. fxe4 {[%clk 0:03:47]} 36... fxe4 {[%clk 0:14:25]} 37. Bxe4
{[%clk 0:04:14]} 37... Bxh2 {[%clk 0:14:43]} 38. Nd4 {[%clk 0:02:57]} 38... Be5
{[%clk 0:14:22]} 39. Bd3 {[%clk 0:02:47]} 39... Bxd4 {[%clk 0:14:46]} 40. cxd4
{[%clk 0:03:16]} 40... Bc6 {[%clk 0:12:01]} 41. g3 {[%clk 0:02:50]} 41... h5
{[%clk 0:10:23]} 42. Ke3 {[%clk 0:02:35]} 42... g5 {[%clk 0:09:49]} 43. Bf5
{[%clk 0:01:23]} 43... Kf6 {[%clk 0:10:02]} 44. Bc8 {[%clk 0:01:17]} 44... Ke7
{[%clk 0:10:02]} 45. Bh3 {[%clk 0:01:09]} 45... Kd6 {[%clk 0:10:08]} 46. Bf1
{[%clk 0:01:02]} 46... Kd5 {[%clk 0:09:08]} 47. Bg2+ {[%clk 0:00:49]} 47... Kd6
{[%clk 0:09:34]} 48. Bf1 {[%clk 0:01:09]} 48... Ke6 {[%clk 0:09:46]} 49. Bh3+
{[%clk 0:01:06]} 49... Kf6 {[%clk 0:04:41]} 50. Bf1 {[%clk 0:01:22]} 50... Kf5
{[%clk 0:04:46]} 51. Bh3+ {[%clk 0:01:36]} 51... g4 {[%clk 0:03:19]} 52. Bf1
{[%clk 0:02:01]} 52... Kg5 {[%clk 0:03:39]} 53. d5 {[%clk 0:01:28]} 53... Bxd5
{[%clk 0:03:34]} 54. Bxb5 {[%clk 0:01:46]} 54... h4 {[%clk 0:03:46]} 55. gxh4+
{[%clk 0:02:08]} 55... Kxh4 {[%clk 0:04:12]} 56. Kf2 {[%clk 0:02:07]} 56... g3+
{[%clk 0:04:14]} 57. Kg1 {[%clk 0:02:31]} 57... Kg4 {[%clk 0:04:23]} 58. Bf1
{[%clk 0:02:19]} 58... Kf4 {[%clk 0:04:43]} 59. b5 {[%clk 0:02:23]} 59... Ke5
{[%clk 0:05:02]} 60. b6 {[%clk 0:02:14]} 60... Kd6 {[%clk 0:05:30]} 61. Bg2
{[%clk 0:02:31]} 61... Bxg2 {[%clk 0:05:53]} 62. Kxg2 {[%clk 0:02:44]} 62... Kc6
{[%clk 0:06:18]} 63. Kxg3 {[%clk 0:03:03]} 63... Kxb6 1/2-1/2

[Variant "Standard"]
[Site "Europe Echecs"]

[Event "Championnat du monde jeunes U10"]
[Date "2024.11.26"]
[White "Chakhalov, Mikael"]
[Black "Gomez Silva, Maximiliano"]
[WhiteElo "1962"]
[BlackElo "1643"]
[Round "11.27"]
[Result "1/2-1/2"]
[TimeControl "5400+30"]

1. c4 {[%clk 1:30:57]} 1... e6 {[%clk 1:30:26]} 2. d4 {[%clk 1:31:12]} 2... Nf6
{[%clk 1:30:16]} 3. Nc3 {[%clk 1:31:19]} 3... d5 {[%clk 1:30:06]} 4. Nf3 {[%clk
1:31:33]} 4... Be7 {[%clk 1:30:03]} 5. Bf4 {[%clk 1:31:43]} 5... c5 {[%clk
1:27:17]} 6. e3 {[%clk 1:31:39]} 6... O-O {[%clk 1:23:06]} 7. Rc1 {[%clk
1:31:26]} 7... Nc6 {[%clk 1:18:08]} 8. Be2 {[%clk 1:30:06]} 8... a6 {[%clk
1:16:19]} 9. cxd5 {[%clk 1:27:40]} 9... exd5 {[%clk 1:13:21]} 10. dxc5 {[%clk
1:27:30]} 10... Bxc5 {[%clk 1:10:52]} 11. Nxd5 {[%clk 1:25:07]} 11... Qa5+
{[%clk 1:04:23]} 12. Nc3 {[%clk 1:25:26]} 12... Bb4 {[%clk 1:03:07]} 13. O-O
{[%clk 1:24:01]} 13... Bxc3 {[%clk 0:59:17]} 14. Rxc3 {[%clk 1:23:43]} 14...
Qxa2 {[%clk 0:54:54]} 15. Qc2 {[%clk 1:22:37]} 15... Nb4 {[%clk 0:42:25]} 16.
Qb3 {[%clk 1:20:33]} 16... Qxb3 {[%clk 0:40:37]} 17. Rxb3 {[%clk 1:21:01]} 17...
Nbd5 {[%clk 0:39:06]} 18. Be5 {[%clk 1:20:12]} 18... b5 {[%clk 0:36:52]} 19. Nd4
{[%clk 1:19:51]} 19... Ne4 {[%clk 0:34:15]} 20. Bf3 {[%clk 1:18:10]} 20... f5
{[%clk 0:30:00]} 21. Rd1 {[%clk 1:17:33]} 21... Bb7 {[%clk 0:28:10]} 22. h3
{[%clk 1:07:54]} 22... Rac8 {[%clk 0:21:54]} 23. Bh2 {[%clk 1:02:29]} 23... b4
{[%clk 0:14:52]} 24. Nxf5 {[%clk 0:57:23]} 24... Nc5 {[%clk 0:08:12]} 25. Bxd5+
{[%clk 0:57:49]} 25... Bxd5 {[%clk 0:08:32]} 26. Rxd5 {[%clk 0:56:38]} 26...
Nxb3 {[%clk 0:06:20]} 27. Ne7+ {[%clk 0:57:04]} 27... Kf7 {[%clk 0:03:06]} 28.
Nxc8 {[%clk 0:57:30]} 28... Rxc8 {[%clk 0:03:35]} 29. Be5 {[%clk 0:56:39]} 29...
Ke6 {[%clk 0:03:33]} 30. e4 {[%clk 0:57:01]} 30... Rc5 {[%clk 0:01:29]} 31. Rxc5
Nxc5 32. Bxg7 {[%clk 0:55:51]} 32... Nxe4 {[%clk 0:01:25]} 33. Kf1 {[%clk
0:56:12]} 33... Kd5 {[%clk 0:01:25]} 34. Ke2 {[%clk 0:56:34]} 34... a5 {[%clk
0:01:08]} 35. f4 {[%clk 0:56:11]} 35... a4 {[%clk 0:01:16]} 36. f5 {[%clk
0:56:03]} 36... a3 {[%clk 0:01:14]} 37. bxa3 {[%clk 0:56:12]} 37... bxa3 {[%clk
0:01:43]} 38. g4 {[%clk 0:56:07]} 38... a2 {[%clk 0:01:42]} 39. Ba1 {[%clk
0:55:26]} 39... Nc5 {[%clk 0:01:49]} 40. g5 {[%clk 0:55:18]} 40... Nb3 {[%clk
0:01:43]} 41. g6 {[%clk 0:54:42]} 41... hxg6 {[%clk 0:02:06]} 42. fxg6 {[%clk
0:54:52]} 42... Ke6 {[%clk 0:02:22]} 43. Bb2 {[%clk 0:54:31]} 43... a1=Q {[%clk
0:02:33]} 44. Bxa1 {[%clk 0:54:58]} 44... Nxa1 {[%clk 0:03:01]} 45. h4 {[%clk
0:55:15]} 45... Nb3 {[%clk 0:03:04]} 46. Kf3 {[%clk 0:55:25]} 46... Nd4+ {[%clk
0:02:59]} 47. Kf4 {[%clk 0:55:48]} 47... Kf6 {[%clk 0:02:57]} 48. h5 {[%clk
0:56:12]} 48... Ne6+ {[%clk 0:03:01]} 49. Kg4 {[%clk 0:56:29]} 49... Kg7 {[%clk
0:03:15]} 50. Kf5 {[%clk 0:56:49]} 50... Nf8 {[%clk 0:03:30]} 51. Kg5 {[%clk
0:57:13]} 51... Nxg6 {[%clk 0:03:38]} 1/2-1/2

[Variant "Standard"]
[Site "Europe Echecs"]

[Event "Championnat du monde jeunes U10"]
[Date "2024.11.26"]
[White "Mutyalapati, Modith Aaroh"]
[Black "Azimov, Yasin"]
[WhiteElo "1893"]
[BlackElo "1759"]
[Round "11.28"]
[Result "0-1"]
[TimeControl "5400+30"]

1. b3 {[%clk 1:30:39]} 1... e5 {[%clk 1:29:31]} 2. Bb2 {[%clk 1:30:59]} 2... Nc6
{[%clk 1:29:47]} 3. e3 {[%clk 1:30:53]} 3... d6 {[%clk 1:29:19]} 4. c4 {[%clk
1:30:28]} 4... g6 {[%clk 1:28:10]} 5. Ne2 {[%clk 1:29:26]} 5... Bg7 {[%clk
1:27:49]} 6. d4 {[%clk 1:29:36]} 6... Nge7 {[%clk 1:25:57]} 7. d5 {[%clk
1:07:01]} 7... Nb8 {[%clk 1:25:02]} 8. g3 {[%clk 1:06:50]} 8... Nd7 {[%clk
1:21:46]} 9. Bg2 {[%clk 1:07:07]} 9... a5 {[%clk 1:20:15]} 10. Nbc3 {[%clk
1:05:49]} 10... Nc5 {[%clk 1:19:18]} 11. Qc2 {[%clk 0:59:36]} 11... O-O {[%clk
1:09:21]} 12. Na4 {[%clk 0:54:53]} 12... Na6 {[%clk 1:05:49]} 13. a3 {[%clk
0:52:34]} 13... Bd7 {[%clk 1:01:03]} 14. Nac3 {[%clk 0:52:29]} 14... f5 {[%clk
0:57:20]} 15. h4 {[%clk 0:50:55]} 15... h6 {[%clk 0:51:44]} 16. Rd1 {[%clk
0:48:26]} 16... Nc5 {[%clk 0:46:44]} 17. f4 {[%clk 0:31:49]} 17... e4 {[%clk
0:44:13]} 18. Nc1 {[%clk 0:32:11]} 18... h5 {[%clk 0:38:19]} 19. N3e2 {[%clk
0:29:25]} 19... Bxb2 {[%clk 0:34:58]} 20. Qxb2 {[%clk 0:29:53]} 20... b5 {[%clk
0:34:45]} 21. cxb5 {[%clk 0:22:16]} 21... Bxb5 {[%clk 0:34:52]} 22. Nc3 {[%clk
0:21:09]} 22... Bd7 {[%clk 0:31:18]} 23. Bf1 {[%clk 0:21:22]} 23... Qb8 {[%clk
0:30:37]} 24. Bc4 {[%clk 0:21:33]} 24... Qb6 {[%clk 0:28:33]} 25. Kf2 {[%clk
0:20:11]} 25... Rab8 {[%clk 0:27:44]} 26. Qc2 {[%clk 0:19:03]} 26... Kh7 {[%clk
0:27:08]} 27. Rhe1 {[%clk 0:17:29]} 27... Ng8 {[%clk 0:24:48]} 28. Qd2 {[%clk
0:14:55]} 28... Nf6 {[%clk 0:23:44]} 29. Re2 {[%clk 0:14:52]} 29... Ng4+ {[%clk
0:23:17]} 30. Kg2 {[%clk 0:15:20]} 30... Bc8 {[%clk 0:20:59]} 31. a4 {[%clk
0:15:09]} 31... Ba6 {[%clk 0:17:33]} 32. Bxa6 {[%clk 0:13:33]} 32... Nxa6 {[%clk
0:17:30]} 33. Nb5 {[%clk 0:14:02]} 33... Nb4 {[%clk 0:17:31]} 34. Qc3 {[%clk
0:14:15]} 34... Rf7 {[%clk 0:17:06]} 35. Rd4 {[%clk 0:13:51]} 35... Nf6 {[%clk
0:16:20]} 36. Red2 {[%clk 0:13:30]} 36... Qb7 {[%clk 0:15:05]} 37. Qc4 {[%clk
0:12:42]} 37... Nfxd5 {[%clk 0:13:19]} 38. Rxd5 {[%clk 0:08:46]} 38... Nxd5
{[%clk 0:13:33]} 39. Rxd5 {[%clk 0:08:41]} 39... c6 {[%clk 0:13:46]} 40. Rxd6
{[%clk 0:08:50]} 40... cxb5 {[%clk 0:13:59]} 41. axb5 {[%clk 0:09:18]} 41... Rc8
{[%clk 0:11:44]} 42. Qe6 {[%clk 0:03:49]} 42... Rc2+ {[%clk 0:12:02]} 43. Kh3
{[%clk 0:04:14]} 43... Rg7 {[%clk 0:12:13]} 44. Rc6 {[%clk 0:02:51]} 44... Rxc6
{[%clk 0:11:38]} 45. bxc6 {[%clk 0:03:06]} 45... Qb5 {[%clk 0:11:46]} 46. Kg2
{[%clk 0:03:20]} 46... Rc7 {[%clk 0:12:06]} 47. Kf2 {[%clk 0:03:18]} 47... Qxc6
{[%clk 0:12:09]} 48. Qxc6 {[%clk 0:03:44]} 48... Rxc6 {[%clk 0:12:35]} 49. Ne2
{[%clk 0:04:10]} 49... Rc2 {[%clk 0:12:09]} 50. Ke1 {[%clk 0:04:31]} 50... Rb2
{[%clk 0:12:03]} 51. Nd4 {[%clk 0:04:57]} 51... Kg7 {[%clk 0:11:42]} 52. Kd1
{[%clk 0:05:22]} 52... Kf7 {[%clk 0:11:51]} 53. Kc1 {[%clk 0:05:47]} 53... Rg2
{[%clk 0:11:55]} 54. Nc6 {[%clk 0:06:15]} 54... Re2 {[%clk 0:11:05]} 55. Nxa5
{[%clk 0:06:40]} 55... Rxe3 {[%clk 0:11:24]} 56. b4 {[%clk 0:07:09]} 56... Rd3
{[%clk 0:11:21]} 57. b5 {[%clk 0:07:21]} 57... Rd5 {[%clk 0:11:38]} 0-1

[Variant "Standard"]
[Site "Europe Echecs"]

[Event "Championnat du monde jeunes U10"]
[Date "2024.11.26"]
[White "Meitzner, Jonathan Franz"]
[Black "Bulat, Mansur"]
[WhiteElo "1876"]
[BlackElo "1610"]
[Round "11.29"]
[Result "0-1"]
[TimeControl "5400+30"]

1. d4 {[%clk 1:30:54]} 1... Nf6 {[%clk 1:30:39]} 2. Bf4 {[%clk 1:31:15]} 2... d5
{[%clk 1:30:35]} 3. c3 {[%clk 1:30:43]} 3... c5 {[%clk 1:29:43]} 4. dxc5 {[%clk
1:28:32]} 4... Nc6 {[%clk 1:27:57]} 5. b4 {[%clk 1:25:29]} 5... a6 {[%clk
1:24:26]} 6. Nf3 {[%clk 1:24:10]} 6... Bf5 {[%clk 1:21:12]} 7. e3 {[%clk
1:22:47]} 7... h6 {[%clk 1:18:20]} 8. h4 {[%clk 1:08:26]} 8... e6 {[%clk
1:10:23]} 9. Be2 {[%clk 1:03:33]} 9... Ne4 {[%clk 1:06:18]} 10. Qa4 {[%clk
0:54:05]} 10... Bg4 {[%clk 0:56:31]} 11. Ne5 {[%clk 0:42:32]} 11... Bxe2 {[%clk
0:56:45]} 12. Kxe2 {[%clk 0:42:42]} 12... Rc8 {[%clk 0:53:02]} 13. f3 {[%clk
0:32:58]} 13... Nf6 {[%clk 0:53:02]} 14. Na3 {[%clk 0:29:35]} 14... Nd7 {[%clk
0:49:34]} 15. Rad1 {[%clk 0:26:08]} 15... Ndxe5 {[%clk 0:49:27]} 16. Bxe5 {[%clk
0:25:51]} 16... Qd7 {[%clk 0:49:49]} 17. Bg3 {[%clk 0:25:37]} 17... Nd4+ {[%clk
0:50:13]} 18. Rxd4 {[%clk 0:24:24]} 18... Qxa4 {[%clk 0:50:38]} 19. Nc2 {[%clk
0:24:33]} 19... Qxc2+ {[%clk 0:51:02]} 20. Rd2 {[%clk 0:24:57]} 20... Qxc3 0-1

[Variant "Standard"]
[Site "Europe Echecs"]

[Event "Championnat du monde jeunes U10"]
[Date "2024.11.26"]
[White "Kais, Kristofer"]
[Black "Mrozowski, Nikodem"]
[WhiteElo "1723"]
[BlackElo "1874"]
[Round "11.30"]
[Result "0-1"]
[TimeControl "5400+30"]

1. e4 {[%clk 1:30:58]} 1... c5 {[%clk 1:30:52]} 2. Nf3 {[%clk 1:31:20]} 2... d6
{[%clk 1:31:16]} 3. d4 {[%clk 1:31:44]} 3... cxd4 {[%clk 1:31:42]} 4. Nxd4
{[%clk 1:32:07]} 4... Nf6 {[%clk 1:32:05]} 5. Nc3 {[%clk 1:32:32]} 5... Nc6
{[%clk 1:32:30]} 6. Bg5 {[%clk 1:32:51]} 6... e6 {[%clk 1:32:11]} 7. Qd2 {[%clk
1:33:15]} 7... a6 {[%clk 1:32:38]} 8. O-O-O {[%clk 1:33:30]} 8... Bd7 {[%clk
1:32:56]} 9. f4 {[%clk 1:33:41]} 9... b5 {[%clk 1:33:20]} 10. Bxf6 {[%clk
1:33:47]} 10... gxf6 {[%clk 1:33:29]} 11. Nxc6 {[%clk 1:34:05]} 11... Bxc6
{[%clk 1:33:55]} 12. Qe1 {[%clk 1:34:15]} 12... Be7 {[%clk 1:32:10]} 13. Bd3
{[%clk 1:27:39]} 13... Qb6 {[%clk 1:28:55]} 14. Kb1 {[%clk 1:22:12]} 14... b4
{[%clk 1:26:32]} 15. Ne2 {[%clk 1:22:30]} 15... a5 {[%clk 1:25:57]} 16. f5
{[%clk 1:21:45]} 16... e5 {[%clk 1:25:13]} 17. Qh4 {[%clk 1:14:35]} 17... a4
{[%clk 1:19:53]} 18. Bc4 {[%clk 1:07:57]} 18... Qc5 {[%clk 1:18:59]} 19. b3
{[%clk 1:02:19]} 19... axb3 {[%clk 1:18:30]} 20. cxb3 {[%clk 1:02:21]} 20... Qe3
{[%clk 1:15:34]} 21. Bd3 {[%clk 0:58:43]} 21... h5 {[%clk 1:09:30]} 22. Rhf1
{[%clk 0:55:36]} 22... Kd7 {[%clk 1:01:48]} 23. Qf2 {[%clk 0:53:59]} 23... Qxf2
{[%clk 1:00:30]} 24. Rxf2 {[%clk 0:54:24]} 24... Ra5 {[%clk 1:00:21]} 25. Nc1
{[%clk 0:51:17]} 25... d5 {[%clk 0:59:10]} 26. exd5 {[%clk 0:48:57]} 26... Rxd5
{[%clk 0:58:39]} 27. Rfd2 {[%clk 0:48:49]} 27... Bc5 {[%clk 0:57:19]} 28. Be4
{[%clk 0:46:32]} 28... Rxd2 {[%clk 0:57:21]} 29. Rxd2+ {[%clk 0:45:54]} 29...
Bd4 {[%clk 0:57:13]} 30. Bxc6+ {[%clk 0:45:50]} 30... Kxc6 {[%clk 0:57:41]} 31.
Rc2+ {[%clk 0:43:11]} 31... Kd5 {[%clk 0:55:15]} 32. Rc4 {[%clk 0:38:03]} 32...
Rg8 {[%clk 0:54:06]} 33. g3 {[%clk 0:36:37]} 33... h4 {[%clk 0:51:20]} 34. Ne2
{[%clk 0:36:18]} 34... hxg3 {[%clk 0:51:33]} 35. Nxg3 {[%clk 0:34:48]} 35... Rh8
{[%clk 0:51:15]} 36. Rc2 {[%clk 0:29:52]} 36... e4 {[%clk 0:49:19]} 37. Re2
{[%clk 0:26:51]} 37... Rh4 {[%clk 0:49:04]} 38. Kc2 {[%clk 0:26:03]} 38... Ke5
{[%clk 0:49:10]} 39. Rg2 {[%clk 0:23:01]} 39... Kf4 {[%clk 0:48:44]} 40. Kd2
{[%clk 0:21:52]} 40... Kf3 {[%clk 0:48:10]} 41. Re2 {[%clk 0:21:55]} 41... Bf2
{[%clk 0:47:17]} 42. Nf1 {[%clk 0:18:17]} 42... Rh8 {[%clk 0:47:28]} 43. Kd1
{[%clk 0:17:10]} 43... e3 {[%clk 0:47:26]} 44. Nxe3 {[%clk 0:15:47]} 44... Rd8+
{[%clk 0:47:33]} 0-1

[Variant "Standard"]
[Site "Europe Echecs"]

[Event "Championnat du monde jeunes U10"]
[Date "2024.11.26"]
[White "Katta, Sriansh"]
[Black "Garcia Tanjala, Marko"]
[WhiteElo "1766"]
[BlackElo "1833"]
[Round "11.31"]
[Result "1-0"]
[TimeControl "5400+30"]

1. e4 {[%clk 1:30:56]} 1... c5 {[%clk 1:30:39]} 2. Nc3 {[%clk 1:31:08]} 2... Nc6
{[%clk 1:30:59]} 3. f4 {[%clk 1:31:34]} 3... g6 {[%clk 1:31:21]} 4. Nf3 {[%clk
1:31:58]} 4... Bg7 {[%clk 1:31:45]} 5. a4 {[%clk 1:32:26]} 5... e6 {[%clk
1:31:38]} 6. e5 {[%clk 1:32:51]} 6... a6 {[%clk 1:31:22]} 7. Ne4 {[%clk
1:32:36]} 7... b6 {[%clk 1:30:01]} 8. Nd6+ {[%clk 1:31:44]} 8... Kf8 {[%clk
1:30:23]} 9. g3 {[%clk 1:26:01]} 9... Nh6 {[%clk 1:27:50]} 10. Bh3 f5 {[%clk
1:26:07]} 11. d4 {[%clk 1:19:51]} 11... cxd4 {[%clk 1:21:51]} 12. Nxd4 {[%clk
1:20:03]} 12... Nf7 {[%clk 1:21:56]} 13. Nxf7 {[%clk 1:11:07]} 13... Kxf7 {[%clk
1:22:17]} 14. Bg2 {[%clk 1:11:24]} 14... Qc7 {[%clk 1:22:06]} 15. O-O {[%clk
1:08:41]} 15... Bb7 {[%clk 1:20:46]} 16. Be3 {[%clk 1:00:51]} 16... Rhd8 {[%clk
1:19:09]} 17. Qe2 {[%clk 0:56:31]} 17... Nxd4 {[%clk 1:16:46]} 18. Bxd4 {[%clk
0:56:29]} 18... Bxg2 {[%clk 1:16:32]} 19. Qxg2 {[%clk 0:56:17]} 19... d5 {[%clk
1:16:39]} 20. Qf2 {[%clk 0:55:26]} 20... Rdc8 {[%clk 1:14:49]} 21. c3 {[%clk
0:54:44]} 21... Rab8 {[%clk 1:14:22]} 22. Qe2 {[%clk 0:53:00]} 22... a5 {[%clk
1:09:40]} 23. Qe3 {[%clk 0:51:10]} 23... Bf8 {[%clk 1:07:56]} 24. Rfc1 {[%clk
0:50:18]} 24... Qc4 {[%clk 1:05:11]} 25. Qd2 {[%clk 0:44:54]} 25... b5 {[%clk
1:02:25]} 26. axb5 {[%clk 0:40:35]} 26... Rxb5 {[%clk 1:02:41]} 27. Rab1 {[%clk
0:36:48]} 27... Rcb8 {[%clk 1:02:47]} 28. b4 {[%clk 0:33:34]} 28... axb4 {[%clk
1:00:30]} 29. cxb4 {[%clk 0:33:56]} 29... Rxb4 {[%clk 1:00:53]} 30. Rxc4 {[%clk
0:32:32]} 30... dxc4 {[%clk 1:00:25]} 31. Rxb4 {[%clk 0:31:17]} 31... Rxb4
{[%clk 1:00:13]} 32. Bc3 {[%clk 0:29:28]} 32... Rb7 {[%clk 0:59:12]} 33. Qd8
{[%clk 0:28:08]} 33... Kg8 {[%clk 0:59:02]} 34. Qc8 {[%clk 0:28:18]} 1-0

[Variant "Standard"]
[Site "Europe Echecs"]